[Event "North American U20 Girls 2019"]
[Site "Charlotte"]
[Date "2019.06.30"]
[Round "8.2"]
[White "Zhu, Evelyn"]
[Black "Jie, Tianhui"]
[Result "1/2-1/2"]
[ECO "E32"]
[WhiteElo "2006"]
[BlackElo "1920"]
[Annotator "NA RC"]
[PlyCount "125"]
[EventDate "2019.06.27"]
[EventType "swiss"]
[EventCountry "USA"]
[SourceTitle "playchess.com"]
[Source "ChessBase"]
[SourceQuality "1"]
[TimeControl "5400+30"]

1. d4 {[%emt 1:30:30]} Nf6 {[%emt 1:30:30]} 2. c4 {[%emt 0:00:30]} e6 {[%emt 0:00:30]} 3. Nc3 {[%emt 0:00:30]} Bb4 {[%emt 0:00:30]} 4. Qc2 {[%emt 0:00:30]} O-O {[%emt 0:00:30]} 5. Nf3 {[%emt 0:00:30]} d6 {[%emt 0:00:30]} 6. Bd2 {[%emt 0:00:30]} Qe7 {[%emt 0:00:30]} 7. a3 {[%emt 0:00:30]} Bxc3 {[%emt 0:00:30]} 8. Bxc3 {[%emt 0:00:30]} Nbd7 {[%emt 0:00:30]} 9. e3 {[%emt 0:00:30] E32: Nimzo-Indian: Classical (4 Qc2): 4...0-0} e5 {[%emt 0:00:30]} 10. Be2 {[%emt 0:00:30]} a5 {[%emt 0:00:30]} 11. b3 {[%emt 0:00:30]} Re8 {[%emt 0:00:30]} 12. O-O {[%emt 0:00:30]} e4 {[%emt 0:00:30]} 13. Nd2 {[%emt 0:00:30] [#]} c5 $146 {[%emt 0:00:30]} ({Predecessor:} 13... c6 14. Rae1 {½-½ (28) Edouard,R (2646)-Ikonnikov,V (2551) Belgium 2019}) 14. b4 {[%emt 0:00:30]} b6 {[%emt 0:00:30]} 15. bxc5 {[%emt 0:00:30]} bxc5 {[%emt 0:00:30]} 16. d5 {[%emt 0:00:30]} Nf8 {[%emt 0:00:30]} 17. Rab1 {[%emt 0:00:30]} Bf5 {[%emt 0:00:30]} 18. Rb5 {[%emt 0:00:30]} a4 {[%emt 0:00:30]} 19. Rfb1 {[%emt 0:00:30]} Ng4 {[%emt 0:00:30]} 20. Bxg4 {[%emt 0:00:30]} Bxg4 {[%emt 0:00:30]} 21. Nf1 {[%emt 0:00:30]} Qg5 {[%emt 0:00:30]} 22. Kh1 {[%emt 0:00:30]} h5 {[%emt 0:00:30]} 23. h3 {[%emt 0:00:30]} Bd7 {[%emt 0:00:30]} 24. Rb6 {[%emt 0:00:30]} Qg6 {[%emt 0:00:30]} 25. Ng3 {[%emt 0:00:30]} h4 {[%emt 0:00:30]} 26. Ne2 {[%emt 0:00:30]} Qh6 {[%emt 0:00:30]} 27. Qd1 {[%emt 0:00:30]} g5 {[%emt 0:00:30] [#]} 28. Qg1 {[%emt 0:00:30]} (28. Nd4 $1 $18 {[%mdl 512] has better winning chances.}) 28... Rad8 {[%emt 0:00:30]} (28... Bc8 $16) 29. Qh2 {[%emt 0:00:30]} Bc8 {[%emt 0:00:30]} 30. Rc6 {[%emt 0:00:30]} Qh5 {[%emt 0:00:30]} 31. Ng1 {[%emt 0:00:30]} Bf5 {[%emt 0:00:30]} 32. Rxd6 {[%emt 0:00:30]} Nd7 {[%emt 0:00:30]} 33. Ra6 {[%emt 0:00:30]} Ra8 {[%emt 0:00:30]} 34. Rxa8 {[%emt 0:00:30]} Rxa8 {[%emt 0:00:30]} 35. Qd6 {[%emt 0:00:30]} Qg6 {[%emt 0:00:30]} 36. Qc7 {[%emt 0:00:30]} Qa6 {[%emt 0:00:30]} 37. Rb5 {[%emt 0:00:30]} Qc8 {[%emt 0:00:30]} 38. Qd6 {[%emt 0:00:30]} Qf8 {[%emt 0:00:30]} 39. Qc7 $2 {[%emt 0:00:30]} (39. Be5 $18) 39... Rc8 {[%emt 0:00:30]} 40. Qh2 {[%emt 0:00:30]} Ra8 {[%emt 0:00:30]} 41. g4 {[%emt 0:00:30]} hxg3 {[%emt 0:00:30]} 42. Qxg3 {[%emt 0:00:30]} f6 {[%emt 0:00:30]} 43. Ne2 {[%emt 0:00:30]} Qh6 {[%emt 0:00:30]} 44. Kg2 {[%emt 0:00:30]} Kf7 {[%emt 0:00:30]} 45. Rb1 {[%emt 0:00:30]} Rh8 {[%emt 0:00:30]} 46. Rh1 $19 {[%emt 0:00:30]} (46. Ng1 $11) 46... Qh4 {[%emt 0:00:30]} 47. Qxh4 {[%emt 0:00:30]} gxh4 {[%emt 0:00:30]} 48. Nf4 {[%emt 0:00:30]} Rg8+ {[%emt 0:00:30]} 49. Kh2 {[%emt 0:00:30]} Rb8 50. Ng2 {[%emt 0:00:30]} Rb3 {[%emt 0:01:00]} 51. Ba5 {[%emt 0:00:30]} Ne5 {[%emt 0:00:30]} 52. Nxh4 {[%emt 0:00:30]} Bd7 {[%emt 0:00:30]} 53. Rc1 {[%emt 0:00:30]} Rxa3 {[%emt 0:00:30]} 54. Kg3 {[%emt 0:00:30]} Rb3 {[%emt 0:00:30]} 55. Ng2 {[%emt 0:00:30]} a3 {[%emt 0:00:30]} 56. Ne1 {[%emt 0:00:30]} a2 {[%emt 0:00:30]} 57. Ra1 {[%emt 0:00:30]} Rb1 {[%emt 0:00:30]} 58. Rxa2 {[%emt 0:00:30]} Nxc4 {[%emt 0:00:30]} 59. Nc2 {[%emt 0:00:30]} Rd1 {[%emt 0:00:30]} 60. Kf4 {[%emt 0:00:30]} Rxd5 {[%emt 0:00:30]} 61. Kxe4 {[%emt 0:00:30]} Re5+ {[%emt 0:00:30]} 62. Kd3 {[%emt 0:00:30]} Nxa5 {[%emt 0:00:30]} 63. Ra3 {[%emt 0:00:30]} 1/2-1/2

[Event "North American U20 Girls 2019"]
[Site "Charlotte"]
[Date "2019.06.30"]
[Round "8.3"]
[White "Morris-Suzuki, Sophie"]
[Black "Ehsani, Yassamin"]
[Result "1-0"]
[ECO "B42"]
[WhiteElo "1945"]
[BlackElo "1866"]
[Annotator "NA RC"]
[PlyCount "79"]
[EventDate "2019.06.27"]
[EventType "swiss"]
[EventCountry "USA"]
[SourceTitle "playchess.com"]
[Source "ChessBase"]
[SourceQuality "1"]
[TimeControl "5400+30"]

1. e4 {[%emt 1:30:30]} c5 {[%emt 1:30:30]} 2. Nf3 {[%emt 0:00:30]} e6 {[%emt 0:00:30]} 3. d4 {[%emt 0:00:30]} cxd4 {[%emt 0:00:30]} 4. Nxd4 {[%emt 0:00:30]} a6 {[%emt 0:00:30]} 5. Bd3 {[%emt 0:00:30]} Nc6 {[%emt 0:00:30]} 6. Nxc6 {[%emt 0:00:30]} dxc6 {[%emt 0:00:30]} 7. O-O {[%emt 0:00:30]} e5 {[%emt 0:00:30]} 8. f4 {[%emt 0:00:30]} Bc5+ {[%emt 0:00:30] B42: Sicilian: Kan Variation: 5 Bd3} (8... Nf6 9. Kh1 Ng4 10. Qe1 Bc5 11. Nc3 Qd4 12. Nd1 Be6 13. f5 Bc4 14. Rf3 O-O-O 15. Bd2 Bxd3 16. cxd3 {½-½ (29) Mchedlishvili,M (2601)-Quparadze,G (2498) Tbilisi 2017}) 9. Kh1 {[%emt 0:00:30]} Nf6 {[%emt 0:00:30]} 10. f5 {[%emt 0:00:30]} b5 {[%emt 0:00:30]} 11. a4 {[%emt 0:00:30]} Bb7 {[%emt 0:00:30]} 12. axb5 $146 {[%emt 0:00:30]} ({Predecessor:} 12. Bg5 h6 13. Bh4 Be7 14. Nd2 O-O 15. Nb3 Nd7 16. Bf2 {1-0 (57) Ostermeyer,P (2455)-Capelan,G (2425) Solingen 1986}) 12... cxb5 {[%emt 0:00:30]} 13. Nd2 {[%emt 0:00:30]} Bb6 {[%emt 0:00:30]} 14. Qe2 {[%emt 0:00:30]} h6 {[%emt 0:00:30]} 15. g4 {[%emt 0:00:30]} Qd4 {[%emt 0:00:30]} 16. Re1 {[%emt 0:00:30]} h5 {[%emt 0:00:30]} (16... g5 $15) 17. Nb3 {[%emt 0:00:30]} Qd8 {[%emt 0:00:30]} (17... Qf2 $11 18. Qxf2 Bxf2) 18. g5 {[%emt 0:00:30]} Nd7 {[%emt 0:00:30]} (18... Ng4 19. Rf1) 19. Bd2 {[%emt 0:00:30]} Qe7 {[%emt 0:00:30]} 20. h4 {[%emt 0:00:30]} Nc5 {[%emt 0:00:30]} 21. Bb4 {[%emt 0:00:30]} Rc8 {[%emt 0:00:30]} 22. Qh2 {[%emt 0:00:30]} (22. c3 $16) 22... O-O {[%emt 0:00:30]} ({Better is} 22... Nxd3 $15 23. Bxe7 Nf2+ 24. Kg2 Ng4) 23. f6 {[%emt 0:00:30]} Qe6 {[%emt 0:00:30]} 24. fxg7 {[%emt 0:00:30]} Kxg7 {[%emt 0:00:30]} 25. Bxc5 {[%emt 0:00:30]} Bxc5 {[%emt 0:00:30]} 26. Rf1 {[%emt 0:00:30]} (26. Nxc5 $16 Rxc5 27. Re3) 26... Be3 {[%emt 0:00:30]} 27. Rf3 {[%emt 0:00:30]} Bf4 $1 {[%emt 0:00:30] [#]} 28. Qf2 $17 (28. Nd4 $1 $11 {[%mdl 512] remains equal.} Qg6 (28... exd4 29. Rxf4) 29. Qe2) 28... Qd6 {[%emt 0:00:30]} 29. Rf1 {[%emt 0:01:00]} Rc4 {[%emt 0:00:30]} 30. Qe2 {[%emt 0:00:30]} Ra4 {[%emt 0:00:30]} 31. c3 {[%emt 0:00:30]} Qc6 {[%emt 0:00:30]} 32. Nd4 {[%emt 0:00:30]} exd4 {[%emt 0:00:30]} 33. Rxf4 dxc3 {[%emt 0:00:30]} 34. Qxh5 {[%emt 0:01:00]} Qe6 {[%emt 0:00:30]} 35. Kh2 {[%emt 0:00:30]} Ra2 {[%emt 0:00:30]} 36. Rf6 {[%emt 0:00:30]} Qe5+ 37. R1f4 {[%emt 0:00:30]} Rxb2+ {[%emt 0:01:00]} 38. Kh1 {[%emt 0:00:30]} Qe7 {[%emt 0:00:30]} 39. Qh6+ {[%emt 0:00:30]} Kg8 {[%emt 0:00:30]} 40. g6 {[%emt 0:00:30]} 1-0

[Event "North American U20 Girls 2019"]
[Site "Charlotte"]
[Date "2019.06.30"]
[Round "8.4"]
[White "Vittal, Sanjana"]
[Black "Chin, Angelica"]
[Result "1-0"]
[ECO "C15"]
[WhiteElo "1920"]
[BlackElo "1937"]
[Annotator "NA RC"]
[PlyCount "49"]
[EventDate "2019.06.27"]
[EventType "swiss"]
[EventCountry "USA"]
[SourceTitle "playchess.com"]
[Source "ChessBase"]
[SourceQuality "1"]
[TimeControl "5400+30"]

{[%evp 8,39,7,2,13,7,24,8,16,32767,32767,32767,32767,32767,32767,32767,32767,32767,32767,32767,32767,32767,25,45,25,27,99,107,32767,91,139,32767,239,171]} 1. e4 {[%emt 1:30:30]} e6 {[%emt 1:30:30]} 2. d4 {[%emt 0:00:30]} d5 {[%emt 0:00:30]} 3. Nc3 {[%emt 0:00:30]} Bb4 {[%emt 0:00:30]} 4. Nge2 {[%emt 0:00:30]} dxe4 {[%emt 0:00:30]} 5. a3 {[%emt 0:00:30]} Be7 {[%emt 0:00:30]} 6. Nxe4 {[%emt 0:00:30]} Nf6 {[%emt 0:00:30]} 7. Nxf6+ {[%emt 0:00:30]} Bxf6 {[%emt 0:00:30]} 8. Be3 {[%emt 0:00:30] C15: French: 3 Nc3 Bb4: Unusual White 4th moves} O-O {[%emt 0:00:30]} 9. Qd2 {[%emt 0:00:30]} c5 {[%emt 0:00:30]} (9... b6 10. O-O-O Bb7 11. h4 Nd7 12. Nf4 Be7 13. h5 Nf6 14. f3 Qc8 15. Qf2 Rd8 {0-1 (33) Jobava,B (2703)-Ivanchuk,V (2757) Leuven 2017}) 10. O-O-O {[%emt 0:00:30]} cxd4 {[%emt 0:00:30]} 11. Nxd4 {[%emt 0:00:30]} a6 {[%emt 0:00:30]} 12. Bd3 {[%emt 0:00:30]} Qc7 $146 {[%emt 0:00:30]} ({Predecessor:} 12... e5 13. Nb3 Nc6 14. Be4 Qc7 15. f3 Be6 {1-0 (42) Fridman,R (2260)-Zilanus,A (2060) Marijampole 1996}) 13. Ne2 {[%emt 0:00:30]} Nc6 {[%emt 0:00:30]} 14. Nf4 {[%emt 0:00:30]} Qe5 {[%emt 0:00:30]} (14... Rd8 $15) 15. c3 {[%emt 0:00:30]} b5 {[%emt 0:00:30]} 16. Qc2 {[%emt 0:00:30]} h6 {[%emt 0:00:30]} (16... g6 $11) 17. Be4 {[%emt 0:00:30]} Qc7 {[%emt 0:00:30]} 18. Qe2 {[%emt 0:00:30]} Bb7 {[%emt 0:00:30]} 19. Nh5 {[%emt 0:00:30]} Bd8 {[%emt 0:00:30]} 20. Bf4 $18 {[%emt 0:00:30]} e5 {[%emt 0:00:30]} 21. Qg4 {[%emt 0:00:30]} f5 {[%emt 0:00:30]} 22. Bxf5 {[%emt 0:00:30]} Rxf5 {[%emt 0:00:30]} 23. Qxf5 {[%emt 0:00:30]} Bc8 {[%emt 0:00:30]} 24. Qg6 {[%emt 0:00:30]} exf4 {[%emt 0:00:30]} 25. Rxd8+ {[%emt 0:00:30]} 1-0

[Event "North American U20 Girls 2019"]
[Site "Charlotte"]
[Date "2019.06.30"]
[Round "8.5"]
[White "Wu, Abbie"]
[Black "Yellamraju, Ambica"]
[Result "0-1"]
[ECO "C01"]
[WhiteElo "1448"]
[BlackElo "1712"]
[Annotator "NA"]
[PlyCount "138"]
[EventDate "2019.06.27"]
[EventType "swiss"]
[EventCountry "USA"]
[SourceTitle "playchess.com"]
[Source "ChessBase"]
[SourceQuality "1"]
[TimeControl "5400+30"]

1. e4 {[%emt 1:30:30]} e6 {[%emt 1:30:30]} 2. d4 {[%emt 0:00:30]} d5 {[%emt 0:00:30]} 3. Nc3 {[%emt 0:00:30]} Nf6 {[%emt 0:00:30]} 4. exd5 {[%emt 0:00:30]} exd5 {[%emt 0:00:30]} 5. Bf4 {[%emt 0:00:30]} c6 {[%emt 0:00:30]} 6. a3 {[%emt 0:00:30]} Bf5 {[%emt 0:00:30]} 7. Nf3 {[%emt 0:00:30]} Bd6 {[%emt 0:00:30]} 8. Bxd6 {[%emt 0:00:30]} Qxd6 {[%emt 0:00:30]} 9. Qd2 {[%emt 0:00:30]} Nbd7 {[%emt 0:00:30]} 10. O-O-O {[%emt 0:00:30]} O-O {[%emt 0:00:30]} 11. Nh4 {[%emt 0:00:30]} Bg6 {[%emt 0:00:30]} 12. Nxg6 {[%emt 0:00:30]} hxg6 {[%emt 0:00:30]} 13. Be2 {[%emt 0:00:30]} b5 {[%emt 0:00:30]} 14. Na2 {[%emt 0:00:30]} Ne4 {[%emt 0:00:30]} 15. Qe3 {[%emt 0:00:30]} Rfe8 {[%emt 0:00:30]} 16. Qf3 {[%emt 0:00:30]} a5 {[%emt 0:00:30]} 17. h4 {[%emt 0:00:30]} Qf6 {[%emt 0:00:30]} 18. Rhf1 {[%emt 0:00:30]} Qxh4 {[%emt 0:00:30]} 19. Kb1 {[%emt 0:00:30]} Qg5 {[%emt 0:00:30]} 20. Qd3 {[%emt 0:00:30]} Ndf6 {[%emt 0:00:30]} 21. Bf3 {[%emt 0:00:30]} Nd6 {[%emt 0:00:30]} 22. Nc1 {[%emt 0:00:30]} Qf5 {[%emt 0:00:30]} 23. Qxf5 {[%emt 0:00:30]} Nxf5 {[%emt 0:00:30]} 24. g3 {[%emt 0:00:30]} Ne4 {[%emt 0:00:30]} 25. c3 {[%emt 0:00:30]} Rab8 {[%emt 0:00:30]} 26. Nd3 {[%emt 0:00:30]} f6 {[%emt 0:00:30]} 27. Rfe1 {[%emt 0:00:30]} Nfd6 {[%emt 0:00:30]} 28. Kc2 {[%emt 0:00:30]} Kf7 {[%emt 0:00:30]} 29. Bg2 {[%emt 0:00:30]} Rh8 {[%emt 0:00:30]} 30. Rh1 {[%emt 0:00:30]} Rbe8 {[%emt 0:00:30]} 31. Rde1 {[%emt 0:00:30]} Rxh1 {[%emt 0:00:30]} 32. Rxh1 {[%emt 0:00:30]} Nf5 {[%emt 0:00:30]} 33. Re1 {[%emt 0:00:30]} Nfd6 {[%emt 0:00:30]} 34. Bf3 {[%emt 0:00:30]} Rh8 {[%emt 0:00:30]} 35. Rh1 {[%emt 0:00:30]} Rh6 {[%emt 0:00:30]} 36. Bg2 {[%emt 0:00:30]} Nf5 {[%emt 0:00:30]} 37. Rxh6 {[%emt 0:00:30]} gxh6 {[%emt 0:00:30]} 38. Bh3 {[%emt 0:00:30]} Ne7 {[%emt 0:00:30]} 39. Kd1 {[%emt 0:00:30]} g5 {[%emt 0:00:30]} 40. Bg4 {[%emt 0:00:30]} Kg6 {[%emt 0:00:30]} 41. Bd7 {[%emt 0:00:30]} Kf7 {[%emt 0:00:30]} 42. Bg4 {[%emt 0:00:30]} f5 {[%emt 0:00:30]} 43. Bh3 {[%emt 0:00:30]} Kf6 {[%emt 0:00:30]} 44. Ke2 {[%emt 0:00:30]} Ng6 {[%emt 0:00:30]} 45. Bg2 {[%emt 0:00:30]} h5 {[%emt 0:00:30]} 46. Bxe4 {[%emt 0:00:30]} fxe4 {[%emt 0:00:30]} 47. Ne1 {[%emt 0:00:30]} h4 {[%emt 0:00:30]} 48. Kf1 {[%emt 0:00:30]} Kf5 {[%emt 0:00:30]} 49. Kg2 {[%emt 0:00:30]} g4 {[%emt 0:00:30]} 50. gxh4 {[%emt 0:00:30]} Nxh4+ {[%emt 0:00:30]} 51. Kg3 {[%emt 0:00:30]} Kg5 {[%emt 0:00:30]} 52. Nc2 {[%emt 0:00:30]} Nf5+ {[%emt 0:00:30]} 53. Kg2 {[%emt 0:00:30]} Kf4 {[%emt 0:00:30]} 54. Kf1 {[%emt 0:00:30]} e3 {[%emt 0:00:30]} 55. Ne1 {[%emt 0:00:30]} exf2 {[%emt 0:00:30]} 56. Kxf2 {[%emt 0:00:30]} g3+ {[%emt 0:00:30]} 57. Ke2 {[%emt 0:00:30]} Kg4 {[%emt 0:00:30]} 58. Kf1 {[%emt 0:00:30]} Ne3+ {[%emt 0:00:30]} 59. Ke2 {[%emt 0:00:30]} Nc4 {[%emt 0:00:30]} 60. Nd3 {[%emt 0:00:30]} Kh3 {[%emt 0:00:30]} 61. Kf1 {[%emt 0:00:30]} Kh2 {[%emt 0:00:30]} 62. Ne1 {[%emt 0:00:30]} Ne3+ {[%emt 0:00:30]} 63. Ke2 {[%emt 0:00:30]} Nc4 {[%emt 0:00:30]} 64. Kf1 {[%emt 0:00:30]} Nxb2 {[%emt 0:00:30]} 65. Ke2 {[%emt 0:00:30]} Na4 {[%emt 0:00:30]} 66. Kd2 {[%emt 0:00:30]} g2 {[%emt 0:00:30]} 67. Nf3+ {[%emt 0:00:30]} Kh1 {[%emt 0:00:30]} 68. Ng1 {[%emt 0:00:30]} Kxg1 {[%emt 0:00:30]} 69. Kc2 {[%emt 0:00:30]} Kf2 {[%emt 0:00:30]} 0-1

[Event "North American U20 Girls 2019"]
[Site "Charlotte"]
[Date "2019.06.30"]
[Round "9.1"]
[White "Yip, Carissa"]
[Black "Vittal, Sanjana"]
[Result "1-0"]
[ECO "A00"]
[WhiteElo "2276"]
[BlackElo "1920"]
[Annotator "NA"]
[PlyCount "117"]
[EventDate "2019.06.27"]
[EventType "swiss"]
[EventCountry "USA"]
[SourceTitle "playchess.com"]
[Source "ChessBase"]
[SourceQuality "1"]
[TimeControl "5400+30"]

1. a3 {[%emt 1:30:30]} d5 {[%emt 1:30:30]} 2. Nf3 {[%emt 0:00:30]} Nf6 {[%emt 0:00:30]} 3. g3 {[%emt 0:00:30]} Bg4 {[%emt 0:00:30]} 4. Bg2 {[%emt 0:00:30]} e6 {[%emt 0:00:30]} 5. O-O {[%emt 0:00:30]} Bd6 {[%emt 0:00:30]} 6. d3 {[%emt 0:00:30]} c6 {[%emt 0:00:30]} 7. Nbd2 {[%emt 0:00:30]} O-O {[%emt 0:00:30]} 8. h3 {[%emt 0:00:30]} Bh5 {[%emt 0:00:30]} 9. c3 {[%emt 0:00:30]} Nbd7 {[%emt 0:00:30]} 10. b4 {[%emt 0:00:30]} Re8 {[%emt 0:00:30]} 11. Qc2 {[%emt 0:00:30]} e5 {[%emt 0:00:30]} 12. e4 {[%emt 0:00:30]} Qc7 {[%emt 0:00:30]} 13. Nh4 {[%emt 0:00:30]} Bg6 {[%emt 0:00:30]} 14. Bb2 {[%emt 0:00:30]} Rad8 {[%emt 0:00:30]} 15. Kh2 {[%emt 0:00:30]} Nf8 {[%emt 0:00:30]} 16. Rac1 {[%emt 0:00:30]} Qb8 {[%emt 0:00:30]} 17. Rfe1 {[%emt 0:00:30]} dxe4 {[%emt 0:00:30]} 18. dxe4 {[%emt 0:00:30]} Bc7 {[%emt 0:00:30]} 19. Nxg6 {[%emt 0:00:30]} Nxg6 {[%emt 0:00:30]} 20. Nc4 {[%emt 0:00:30]} Rd7 {[%emt 0:00:30]} 21. Rcd1 {[%emt 0:00:30]} Red8 {[%emt 0:00:30]} 22. Rxd7 {[%emt 0:00:30]} Rxd7 {[%emt 0:00:30]} 23. Bc1 {[%emt 0:00:30]} Qd8 {[%emt 0:00:30]} 24. a4 {[%emt 0:00:30]} Bb8 {[%emt 0:00:30]} 25. Kg1 {[%emt 0:00:30]} h6 {[%emt 0:00:30]} 26. Na5 {[%emt 0:00:30]} Nf8 {[%emt 0:00:30]} 27. h4 {[%emt 0:00:30]} Ne6 {[%emt 0:00:30]} 28. Bh3 {[%emt 0:00:30]} Qe7 {[%emt 0:00:30]} 29. Qb3 {[%emt 0:00:30]} Qd6 {[%emt 0:00:30]} 30. Ba3 {[%emt 0:00:30]} b5 {[%emt 0:00:30]} 31. Bc1 {[%emt 0:00:30]} a6 {[%emt 0:00:30]} 32. Bxe6 {[%emt 0:00:30]} fxe6 {[%emt 0:00:30]} 33. c4 {[%emt 0:00:30]} Nxe4 {[%emt 0:00:30]} 34. Rxe4 {[%emt 0:00:30]} Qd1+ {[%emt 0:00:30]} 35. Kg2 {[%emt 0:00:30]} Qxc1 {[%emt 0:00:30]} 36. cxb5 {[%emt 0:00:30]} cxb5 {[%emt 0:00:30]} 37. Qxe6+ {[%emt 0:00:30]} Rf7 {[%emt 0:00:30]} 38. Re3 {[%emt 0:00:30]} Qc7 {[%emt 0:00:30]} 39. Nc6 {[%emt 0:00:30]} Qd6 {[%emt 0:00:30]} 40. Qe8+ {[%emt 0:00:30]} Kh7 {[%emt 0:00:30]} 41. Qxf7 {[%emt 0:00:30]} Qxc6+ {[%emt 0:00:30]} 42. Qf3 {[%emt 0:00:30]} Qxf3+ {[%emt 0:00:30]} 43. Kxf3 {[%emt 0:00:30]} Bd6 {[%emt 0:00:30]} 44. axb5 {[%emt 0:00:30]} axb5 {[%emt 0:00:30]} 45. Rb3 {[%emt 0:00:30]} Kg6 {[%emt 0:00:30]} 46. Ke4 {[%emt 0:00:30]} Bb8 {[%emt 0:00:30]} 47. f3 {[%emt 0:00:30]} Kf6 {[%emt 0:00:30]} 48. Kd5 {[%emt 0:00:30]} Ba7 {[%emt 0:00:30]} 49. g4 {[%emt 0:00:30]} h5 {[%emt 0:00:30]} 50. gxh5 {[%emt 0:00:30]} Bf2 {[%emt 0:00:30]} 51. Kc6 {[%emt 0:00:30]} Bxh4 {[%emt 0:00:30]} 52. Kxb5 {[%emt 0:00:30]} Kg5 {[%emt 0:00:30]} 53. Kc6 {[%emt 0:00:30]} Bf2 {[%emt 0:00:30]} 54. b5 {[%emt 0:00:30]} Kxh5 {[%emt 0:00:30]} 55. b6 {[%emt 0:00:30]} Bxb6 {[%emt 0:00:30]} 56. Rxb6 {[%emt 0:00:30]} Kg5 {[%emt 0:00:30]} 57. Kd5 {[%emt 0:00:30]} Kf4 {[%emt 0:00:30]} 58. Rg6 {[%emt 0:00:30]} Kxf3 {[%emt 0:00:30]} 59. Kxe5 {[%emt 0:00:30]} 1-0

[Event "North American U20 Girls 2019"]
[Site "Charlotte"]
[Date "2019.06.30"]
[Round "9.2"]
[White "Yellamraju, Ambica"]
[Black "Zhu, Evelyn"]
[Result "0-1"]
[ECO "D11"]
[WhiteElo "1712"]
[BlackElo "2006"]
[Annotator "NA"]
[PlyCount "110"]
[EventDate "2019.06.27"]
[EventType "swiss"]
[EventCountry "USA"]
[SourceTitle "playchess.com"]
[Source "ChessBase"]
[SourceQuality "1"]
[TimeControl "5400+30"]

1. d4 {[%emt 1:30:30]} d5 {[%emt 1:30:30]} 2. c4 {[%emt 0:00:30]} c6 {[%emt 0:00:30]} 3. Nf3 {[%emt 0:00:30]} Nf6 {[%emt 0:00:30]} 4. e3 {[%emt 0:00:30]} a6 {[%emt 0:00:30]} 5. b3 {[%emt 0:00:30]} Bf5 {[%emt 0:00:30]} 6. Bd3 {[%emt 0:00:30]} Bxd3 {[%emt 0:00:30]} 7. Qxd3 {[%emt 0:00:30]} g6 {[%emt 0:00:30]} 8. O-O {[%emt 0:00:30]} Bg7 {[%emt 0:00:30]} 9. Nbd2 {[%emt 0:00:30]} O-O {[%emt 0:00:30]} 10. Bb2 {[%emt 0:00:30]} Re8 {[%emt 0:00:30]} 11. Rad1 {[%emt 0:00:30]} Nbd7 {[%emt 0:00:30]} 12. e4 {[%emt 0:00:30]} dxe4 {[%emt 0:00:30]} 13. Nxe4 {[%emt 0:00:30]} Nxe4 {[%emt 0:00:30]} 14. Qxe4 {[%emt 0:00:30]} Qa5 {[%emt 0:00:30]} 15. a3 {[%emt 0:00:30]} Rad8 {[%emt 0:00:30]} 16. b4 {[%emt 0:00:30]} Qc7 {[%emt 0:00:30]} 17. Rfe1 {[%emt 0:00:30]} Nb6 {[%emt 0:00:30]} 18. Qc2 {[%emt 0:00:30]} Rd7 {[%emt 0:00:30]} 19. Ne5 {[%emt 0:00:30]} Bxe5 {[%emt 0:00:30]} 20. dxe5 {[%emt 0:00:30]} Rxd1 {[%emt 0:00:30]} 21. Rxd1 {[%emt 0:00:30]} Rd8 {[%emt 0:00:30]} 22. Rd3 {[%emt 0:00:30]} Rxd3 {[%emt 0:00:30]} 23. Qxd3 {[%emt 0:00:30]} Qd7 {[%emt 0:00:30]} 24. Qxd7 {[%emt 0:00:30]} Nxd7 {[%emt 0:00:30]} 25. Bd4 {[%emt 0:00:30]} Nf8 {[%emt 0:00:30]} 26. Bc5 {[%emt 0:00:30]} Nd7 {[%emt 0:00:30]} 27. Bd4 {[%emt 0:00:30]} Nf8 {[%emt 0:00:30]} 28. Kf1 {[%emt 0:00:30]} Ne6 {[%emt 0:00:30]} 29. Bc3 {[%emt 0:00:30]} Kf8 {[%emt 0:00:30]} 30. g3 {[%emt 0:00:30]} Ke8 {[%emt 0:00:30]} 31. Ke2 {[%emt 0:00:30]} Kd7 {[%emt 0:00:30]} 32. Ke3 {[%emt 0:00:30]} Nf8 {[%emt 0:00:30]} 33. f4 {[%emt 0:00:30]} h5 {[%emt 0:00:30]} 34. h3 {[%emt 0:00:30]} Ke6 {[%emt 0:00:30]} 35. g4 {[%emt 0:00:30]} hxg4 {[%emt 0:00:30]} 36. hxg4 {[%emt 0:00:30]} f5 {[%emt 0:00:30]} 37. Kf3 {[%emt 0:00:30]} b5 {[%emt 0:00:30]} 38. cxb5 {[%emt 0:00:30]} cxb5 {[%emt 0:00:30]} 39. Bd4 {[%emt 0:00:30]} Nd7 {[%emt 0:00:30]} 40. gxf5+ {[%emt 0:00:30]} gxf5 {[%emt 0:00:30]} 41. Ke3 {[%emt 0:00:30]} Kd5 {[%emt 0:00:30]} 42. Kd3 {[%emt 0:00:30]} Nf8 {[%emt 0:00:30]} 43. Bc5 {[%emt 0:00:30]} Ng6 {[%emt 0:00:30]} 44. Be3 {[%emt 0:00:30]} Nh4 {[%emt 0:00:30]} 45. Bf2 {[%emt 0:00:30]} Ng2 {[%emt 0:00:30]} 46. Bg3 {[%emt 0:00:30]} e6 {[%emt 0:00:30]} 47. Bh2 {[%emt 0:00:30]} Ne1+ {[%emt 0:00:30]} 48. Kc3 {[%emt 0:00:30]} Ke4 {[%emt 0:00:30]} 49. Kb3 {[%emt 0:00:30]} Ng2 {[%emt 0:00:30]} 50. a4 {[%emt 0:00:30]} Nxf4 {[%emt 0:00:30]} 51. axb5 {[%emt 0:00:30]} axb5 {[%emt 0:00:30]} 52. Kc3 {[%emt 0:00:30]} Nd5+ {[%emt 0:00:30]} 53. Kb3 {[%emt 0:00:30]} f4 {[%emt 0:00:30]} 54. Bg1 {[%emt 0:00:30]} f3 {[%emt 0:00:30]} 55. Bf2 {[%emt 0:00:30]} Kxe5 {[%emt 0:00:30]} 0-1